[Event "*** Titled Tuesday Blitz"]
[Site "Chess.com"]
[Date "2020.11.24"]
[Round "2"]
[White "JulAnt"]
[Black "nitpicker"]
[Result "0-1"]
[WhiteElo "2447"]
[BlackElo "2286"]
[TimeControl "180+1"]
[EndTime "10:34:28 PST"]
[Termination "nitpicker won on time"]

1. e4 {[%clk 0:03:00.9]} 1... d5 {[%clk 0:02:59.5]} 2. exd5 {[%clk 0:02:58.4]}
2... Qxd5 {[%clk 0:02:59.5]} 3. Nf3 {[%clk 0:02:54.7]} 3... Nf6 {[%clk
0:02:58.8]} 4. c4 {[%clk 0:02:51]} 4... Qd8 {[%clk 0:02:57.3]} 5. Nc3 {[%clk
0:02:50.5]} 5... c5 {[%clk 0:02:52.2]} 6. Be2 {[%clk 0:02:50.3]} 6... Nc6 {[%clk
0:02:51.5]} 7. O-O {[%clk 0:02:50.2]} 7... e5 {[%clk 0:02:48.4]} 8. d3 {[%clk
0:02:50.3]} 8... h6 {[%clk 0:02:48.1]} 9. Be3 {[%clk 0:02:48.6]} 9... Be7 {[%clk
0:02:44.4]} 10. h3 {[%clk 0:02:47.3]} 10... O-O {[%clk 0:02:44.1]} 11. a3 {[%clk
0:02:44.2]} 11... Bf5 {[%clk 0:02:42.9]} 12. Re1 {[%clk 0:02:37.2]} 12... Qd7
{[%clk 0:02:40]} 13. Qd2 {[%clk 0:02:22.3]} 13... Rad8 {[%clk 0:02:39.3]} 14.
Rad1 {[%clk 0:02:22.2]} 14... Qc7 {[%clk 0:02:31.4]} 15. Bf1 {[%clk 0:02:16.4]}
15... Rfe8 {[%clk 0:02:26.3]} 16. g4 {[%clk 0:01:40.5]} 16... Bh7 {[%clk
0:02:19.1]} 17. g5 {[%clk 0:01:40.2]} 17... hxg5 {[%clk 0:02:18.2]} 18. Bxg5
{[%clk 0:01:40.2]} 18... Bg6 {[%clk 0:02:18.7]} 19. Nh4 {[%clk 0:01:27.3]} 19...
Bh5 {[%clk 0:02:15.4]} 20. Be2 {[%clk 0:01:25.3]} 20... Bxe2 {[%clk 0:02:13.7]}
21. Qxe2 {[%clk 0:01:23.5]} 21... Qd7 {[%clk 0:01:50.2]} 22. Qf3 {[%clk
0:01:18.1]} 22... Nd4 {[%clk 0:01:45.9]} 23. Qg2 {[%clk 0:01:18.1]} 23... Nh5
{[%clk 0:01:36.3]} 24. Rxe5 {[%clk 0:01:09.8]} 24... f6 {[%clk 0:01:17.6]} 25.
Rd5 {[%clk 0:01:07.9]} 25... Qe6 {[%clk 0:01:15.8]} 26. Be3 {[%clk 0:01:03.9]}
26... Bd6 {[%clk 0:01:02.8]} 27. Ne4 {[%clk 0:00:52.4]} 27... Nf4 {[%clk
0:00:58.9]} 28. Rxd6 {[%clk 0:00:38.2]} 28... Rxd6 {[%clk 0:00:55.4]} 29. Bxf4
{[%clk 0:00:37.8]} 29... Ne2+ {[%clk 0:00:54.9]} 30. Kh1 {[%clk 0:00:34.7]}
30... Nxf4 {[%clk 0:00:55.8]} 31. Qg3 {[%clk 0:00:31.9]} 31... Qxh3+ {[%clk
0:00:49.8]} 32. Qxh3 {[%clk 0:00:31.6]} 32... Nxh3 {[%clk 0:00:48.2]} 33. Nxd6
{[%clk 0:00:31.8]} 33... Nxf2+ {[%clk 0:00:37.8]} 34. Kg2 {[%clk 0:00:30.9]}
34... Nxd1 {[%clk 0:00:37.9]} 35. Nxe8 {[%clk 0:00:30.3]} 35... Nxb2 {[%clk
0:00:38.6]} 36. Nd6 {[%clk 0:00:25.8]} 36... Nxd3 {[%clk 0:00:37.9]} 37. Nxb7
{[%clk 0:00:25.2]} 37... Nb2 {[%clk 0:00:37.7]} 38. Na5 {[%clk 0:00:20.4]} 38...
Kf7 {[%clk 0:00:33.6]} 39. Kf3 {[%clk 0:00:17.7]} 39... g5 {[%clk 0:00:33]} 40.
Nf5 {[%clk 0:00:17.6]} 40... Ke6 {[%clk 0:00:33.4]} 41. Ne3 {[%clk 0:00:16.8]}
41... Nd3 {[%clk 0:00:31.3]} 42. Nc6 {[%clk 0:00:16.1]} 42... Kd6 {[%clk
0:00:29.6]} 43. Nxa7 {[%clk 0:00:15.8]} 43... Ne5+ {[%clk 0:00:27]} 44. Ke4
{[%clk 0:00:15.6]} 44... g4 {[%clk 0:00:25.2]} 45. Nb5+ {[%clk 0:00:14.3]} 45...
Ke6 {[%clk 0:00:23.4]} 46. a4 {[%clk 0:00:13.6]} 46... Nc6 {[%clk 0:00:22.2]}
47. Kf4 {[%clk 0:00:12.1]} 47... Na5 {[%clk 0:00:21.1]} 48. Kxg4 {[%clk
0:00:11]} 48... Ke5 {[%clk 0:00:21.6]} 49. Kf3 {[%clk 0:00:09.4]} 49... f5
{[%clk 0:00:21.1]} 50. Nc3 {[%clk 0:00:04.7]} 50... Nb3 {[%clk 0:00:20.5]} 51.
Ncd5 {[%clk 0:00:04]} 51... Nd4+ {[%clk 0:00:20.5]} 52. Kf2 {[%clk 0:00:03.5]}
52... f4 {[%clk 0:00:20.4]} 53. Ng4+ {[%clk 0:00:02.2]} 53... Kd6 {[%clk
0:00:20.5]} 54. Nh2 {[%clk 0:00:01.5]} 54... Nc6 {[%clk 0:00:20.5]} 55. Nf3
{[%clk 0:00:02.4]} 55... Na5 {[%clk 0:00:20.3]} 56. Nxf4 {[%clk 0:00:01.5]}
56... Nxc4 {[%clk 0:00:20.1]} 57. Ke2 {[%clk 0:00:02]} 57... Kc6 {[%clk
0:00:18.6]} 58. Kd3 {[%clk 0:00:02.2]} 58... Nd6 {[%clk 0:00:16.4]} 59. Kc3
{[%clk 0:00:02.1]} 59... Kb6 {[%clk 0:00:15.5]} 60. Kb3 {[%clk 0:00:02.2]} 60...
Ka5 {[%clk 0:00:15.1]} 61. Nd2 {[%clk 0:00:01.1]} 61... c4+ {[%clk 0:00:14.3]}
0-1

[Event "*** Titled Tuesday Blitz"]
[Site "Chess.com"]
[Date "2020.11.24"]
[Round "2"]
[White "YIYUKI"]
[Black "vlad_Sid"]
[Result "0-1"]
[WhiteElo "2335"]
[BlackElo "2643"]
[TimeControl "180+1"]
[EndTime "10:34:33 PST"]
[Termination "vlad_Sid won on time"]

1. e4 {[%clk 0:03:00.9]} 1... c6 {[%clk 0:03:00.2]} 2. d4 {[%clk 0:02:59.5]}
2... d5 {[%clk 0:03:01.1]} 3. exd5 {[%clk 0:02:59.5]} 3... cxd5 {[%clk 0:03:02]}
4. c4 {[%clk 0:02:59.6]} 4... Nf6 {[%clk 0:03:01.8]} 5. Nc3 {[%clk 0:02:59.5]}
5... Nc6 {[%clk 0:03:00.7]} 6. Bg5 {[%clk 0:02:57.2]} 6... dxc4 {[%clk
0:02:59.3]} 7. Bxc4 {[%clk 0:02:57]} 7... h6 {[%clk 0:02:58.7]} 8. Bh4 {[%clk
0:02:56.1]} 8... Qxd4 {[%clk 0:02:59.2]} 9. Qxd4 {[%clk 0:02:54.5]} 9... Nxd4
{[%clk 0:03:00.1]} 10. O-O-O {[%clk 0:02:53.7]} 10... e5 {[%clk 0:03:00.7]} 11.
f4 {[%clk 0:02:42.5]} 11... Bg4 {[%clk 0:03:00.2]} 12. Re1 {[%clk 0:02:30.3]}
12... Rc8 {[%clk 0:02:57.9]} 13. Rxe5+ {[%clk 0:02:12.8]} 13... Be7 {[%clk
0:02:50.2]} 14. Bd3 {[%clk 0:01:47.8]} 14... Kd7 {[%clk 0:02:38.7]} 15. h3
{[%clk 0:01:47.4]} 15... Be6 {[%clk 0:02:35.2]} 16. Ne2 {[%clk 0:01:46.8]} 16...
Nxe2+ {[%clk 0:02:32.1]} 17. Bxe2 {[%clk 0:01:46.8]} 17... Bd6 {[%clk
0:02:30.1]} 18. Rd1 {[%clk 0:01:45.6]} 18... Ke7 {[%clk 0:02:28.1]} 19. Kb1
{[%clk 0:01:12.7]} 19... g5 {[%clk 0:02:22.2]} 20. Rxe6+ {[%clk 0:01:05.8]}
20... fxe6 {[%clk 0:02:06.2]} 21. fxg5 {[%clk 0:00:59.7]} 21... hxg5 {[%clk
0:02:04]} 22. Bxg5 {[%clk 0:00:58.8]} 22... Rcg8 {[%clk 0:02:04.6]} 23. h4
{[%clk 0:00:59]} 23... Be5 {[%clk 0:01:58.3]} 24. Bf3 {[%clk 0:00:58.7]} 24...
b6 {[%clk 0:01:56.5]} 25. Ne4 {[%clk 0:00:55.7]} 25... Rd8 {[%clk 0:01:46.6]}
26. Rf1 {[%clk 0:00:55]} 26... Rdf8 {[%clk 0:01:09]} 27. Be2 {[%clk 0:00:49.6]}
27... Rf7 {[%clk 0:00:34.3]} 28. Bd3 {[%clk 0:00:48.1]} 28... Rhf8 {[%clk
0:00:33.8]} 29. g4 {[%clk 0:00:46.9]} 29... Ke8 {[%clk 0:00:32.7]} 30. Bb5+
{[%clk 0:00:45.9]} 30... Kd8 {[%clk 0:00:32]} 31. Rd1+ {[%clk 0:00:28.4]} 31...
Kc8 {[%clk 0:00:31.4]} 32. Ba6+ {[%clk 0:00:27.2]} 32... Kb8 {[%clk 0:00:31.2]}
33. Nd6 {[%clk 0:00:25.4]} 33... Bxd6 {[%clk 0:00:30.7]} 34. Rxd6 {[%clk
0:00:25.3]} 34... Ne4 {[%clk 0:00:31.1]} 35. Rxe6 {[%clk 0:00:24.7]} 35... Nxg5
{[%clk 0:00:25]} 36. hxg5 {[%clk 0:00:24.6]} 36... Rg7 {[%clk 0:00:21.5]} 37.
Re5 {[%clk 0:00:21.6]} 37... Rfg8 {[%clk 0:00:20.3]} 38. Be2 {[%clk 0:00:16.6]}
38... Rxg5 {[%clk 0:00:20.3]} 39. Re7 {[%clk 0:00:16.3]} 39... R5g7 {[%clk
0:00:19.8]} 40. Re6 {[%clk 0:00:16.5]} 40... Kc7 {[%clk 0:00:20]} 41. a3 {[%clk
0:00:16.8]} 41... Rd8 {[%clk 0:00:19.5]} 42. Ka2 {[%clk 0:00:16.3]} 42... Rd2
{[%clk 0:00:19.5]} 43. Bf3 {[%clk 0:00:16.5]} 43... b5 {[%clk 0:00:18.7]} 44.
Re5 {[%clk 0:00:15.5]} 44... a6 {[%clk 0:00:17.6]} 45. g5 {[%clk 0:00:15.6]}
45... Rf2 {[%clk 0:00:17]} 46. Be4 {[%clk 0:00:15.5]} 46... Re2 {[%clk
0:00:16.7]} 47. g6 {[%clk 0:00:14]} 47... Kd6 {[%clk 0:00:17]} 48. Re8 {[%clk
0:00:13.1]} 48... Kd7 {[%clk 0:00:17]} 49. Re5 {[%clk 0:00:12.8]} 49... Kc7
{[%clk 0:00:15]} 50. Rc5+ {[%clk 0:00:11.7]} 50... Kb6 {[%clk 0:00:13.1]} 51.
Rc6+ {[%clk 0:00:11.7]} 51... Ka7 {[%clk 0:00:13.8]} 52. Bb1 {[%clk 0:00:09]}
52... Rg2 {[%clk 0:00:13.5]} 53. Rf6 {[%clk 0:00:07.8]} 53... Kb8 {[%clk
0:00:09.8]} 54. Be4 {[%clk 0:00:06.3]} 54... Re7 {[%clk 0:00:09.2]} 55. Rb6+
{[%clk 0:00:04.3]} 55... Ka7 {[%clk 0:00:07.6]} 0-1

[Event "*** Titled Tuesday Blitz"]
[Site "Chess.com"]
[Date "2020.11.24"]
[Round "2"]
[White "hawes33"]
[Black "Siniauski"]
[Result "1/2-1/2"]
[WhiteElo "2219"]
[BlackElo "2539"]
[TimeControl "180+1"]
[EndTime "10:34:36 PST"]
[Termination "Game drawn by repetition"]

1. e4 {[%clk 0:03:00.9]} 1... e6 {[%clk 0:02:59.7]} 2. Nc3 {[%clk 0:02:59.2]}
2... d5 {[%clk 0:02:59.8]} 3. d4 {[%clk 0:03:00.1]} 3... Nf6 {[%clk 0:02:59.4]}
4. Bg5 {[%clk 0:02:59.5]} 4... Bb4 {[%clk 0:02:59.1]} 5. e5 {[%clk 0:02:59.5]}
5... h6 {[%clk 0:02:58.2]} 6. exf6 {[%clk 0:02:59.8]} 6... hxg5 {[%clk
0:02:58.1]} 7. fxg7 {[%clk 0:03:00.3]} 7... Rg8 {[%clk 0:02:58.5]} 8. a3 {[%clk
0:03:00.5]} 8... Bxc3+ {[%clk 0:02:57.8]} 9. bxc3 {[%clk 0:03:01.4]} 9... Qf6
{[%clk 0:02:57.6]} 10. Nf3 {[%clk 0:03:01.8]} 10... b6 {[%clk 0:02:48.6]} 11.
Ne5 {[%clk 0:03:00.6]} 11... Nd7 {[%clk 0:02:35.4]} 12. Bb5 {[%clk 0:02:59]}
12... Qxg7 {[%clk 0:02:32.5]} 13. Bc6 {[%clk 0:02:57]} 13... Rb8 {[%clk
0:02:32.3]} 14. Qf3 {[%clk 0:02:50.6]} 14... f6 {[%clk 0:02:23.5]} 15. Ng4
{[%clk 0:02:38.9]} 15... Ke7 {[%clk 0:02:18.7]} 16. O-O {[%clk 0:02:34.8]} 16...
f5 {[%clk 0:02:10.3]} 17. Ne3 {[%clk 0:02:34]} 17... Bb7 {[%clk 0:01:55.9]} 18.
Bxb7 {[%clk 0:02:25.4]} 18... Rxb7 {[%clk 0:01:56.8]} 19. c4 {[%clk 0:02:26]}
19... Qxd4 {[%clk 0:00:54.6]} 20. cxd5 {[%clk 0:02:25.7]} 20... Qe4 {[%clk
0:00:53.9]} 21. Qh3 {[%clk 0:02:18.3]} 21... f4 {[%clk 0:00:46.7]} 22. dxe6
{[%clk 0:02:08.7]} 22... fxe3 {[%clk 0:00:39.4]} 23. exd7 {[%clk 0:01:59.8]}
23... e2 {[%clk 0:00:38.8]} 24. Rfe1 {[%clk 0:01:51.4]} 24... g4 {[%clk
0:00:39]} 25. Rxe2 {[%clk 0:01:30.4]} 25... gxh3 {[%clk 0:00:34.6]} 26. Rxe4+
{[%clk 0:01:30.1]} 26... Kxd7 {[%clk 0:00:35.1]} 27. Rd1+ {[%clk 0:01:29.4]}
27... Kc8 {[%clk 0:00:34.4]} 28. g3 {[%clk 0:01:29.6]} 28... c5 {[%clk
0:00:33.5]} 29. Rh4 {[%clk 0:01:28.9]} 29... Rd7 {[%clk 0:00:25.3]} 30. Rxd7
{[%clk 0:01:28.4]} 30... Kxd7 {[%clk 0:00:26.2]} 31. Rxh3 {[%clk 0:01:28.9]}
31... Kc6 {[%clk 0:00:27]} 32. Rh7 {[%clk 0:01:28.6]} 32... a5 {[%clk
0:00:27.2]} 33. c4 {[%clk 0:01:27.5]} 33... Rg4 {[%clk 0:00:26]} 34. f4 {[%clk
0:01:27.7]} 34... a4 {[%clk 0:00:23.7]} 35. Rh6+ {[%clk 0:01:26.1]} 35... Kc7
{[%clk 0:00:23.4]} 36. Kf2 {[%clk 0:01:25.7]} 36... Rg7 {[%clk 0:00:23.8]} 37.
Ke3 {[%clk 0:01:25.1]} 37... Rd7 {[%clk 0:00:24.1]} 38. f5 {[%clk 0:01:24.9]}
38... Rd4 {[%clk 0:00:23.8]} 39. Rh4 {[%clk 0:01:24.3]} 39... Rd1 {[%clk
0:00:20.8]} 40. f6 {[%clk 0:01:24.2]} 40... Kd7 {[%clk 0:00:21.3]} 41. Rf4
{[%clk 0:01:21.9]} 41... Ke8 {[%clk 0:00:21.7]} 42. f7+ {[%clk 0:01:21.8]} 42...
Kf8 {[%clk 0:00:22.3]} 43. g4 {[%clk 0:01:21.9]} 43... Ra1 {[%clk 0:00:21.5]}
44. g5 {[%clk 0:01:16.5]} 44... Rxa3+ {[%clk 0:00:22]} 45. Ke4 {[%clk
0:01:17.1]} 45... Ra1 {[%clk 0:00:22]} 46. g6 {[%clk 0:01:17.1]} 46... Rg1
{[%clk 0:00:22.4]} 47. Kf5 {[%clk 0:01:15.8]} 47... Kg7 {[%clk 0:00:19.7]} 48.
Ke5 {[%clk 0:01:08.3]} 48... Re1+ {[%clk 0:00:19.1]} 49. Kd6 {[%clk 0:01:07.7]}
49... Rd1+ {[%clk 0:00:18.4]} 50. Kc6 {[%clk 0:01:05.2]} 50... Rd8 {[%clk
0:00:18.2]} 51. Kxb6 {[%clk 0:01:02]} 51... a3 {[%clk 0:00:18.3]} 52. Rf1 {[%clk
0:00:47.3]} 52... a2 {[%clk 0:00:18.5]} 53. Kxc5 {[%clk 0:00:47.4]} 53... Kxg6
{[%clk 0:00:19.1]} 54. Kb6 {[%clk 0:00:45.6]} 54... Rb8+ {[%clk 0:00:18.9]} 55.
Kc7 {[%clk 0:00:42.8]} 55... Rf8 {[%clk 0:00:17.9]} 56. Ra1 {[%clk 0:00:38.3]}
56... Rxf7+ {[%clk 0:00:18]} 57. Kd6 {[%clk 0:00:38.8]} 57... Rf2 {[%clk
0:00:18.8]} 58. c5 {[%clk 0:00:38.3]} 58... Rd2+ {[%clk 0:00:18.5]} 59. Kc7
{[%clk 0:00:38.4]} 59... Rxh2 {[%clk 0:00:17.3]} 60. c6 {[%clk 0:00:38.6]} 60...
Kf7 {[%clk 0:00:17.6]} 61. Kd7 {[%clk 0:00:38.6]} 61... Rd2+ {[%clk 0:00:17.8]}
62. Kc8 {[%clk 0:00:38.2]} 62... Ke7 {[%clk 0:00:17.5]} 63. c7 {[%clk 0:00:37]}
63... Rb2 {[%clk 0:00:17.4]} 64. Re1+ {[%clk 0:00:35.6]} 64... Kf7 {[%clk
0:00:17.9]} 65. Kd8 {[%clk 0:00:32.5]} 65... Rd2+ {[%clk 0:00:17.9]} 66. Kc8
{[%clk 0:00:32.6]} 66... Rb2 {[%clk 0:00:18.7]} 67. Kd7 {[%clk 0:00:32.9]} 67...
Rd2+ {[%clk 0:00:18.6]} 68. Kc6 {[%clk 0:00:32.8]} 68... Rc2+ {[%clk 0:00:18.8]}
69. Kd6 {[%clk 0:00:33.1]} 69... Rd2+ {[%clk 0:00:19.1]} 70. Kc6 {[%clk
0:00:33.2]} 70... Rc2+ {[%clk 0:00:19.6]} 71. Kd7 {[%clk 0:00:33.4]} 71... Rd2+
{[%clk 0:00:20]} 72. Kc8 {[%clk 0:00:33.5]} 72... Rc2 {[%clk 0:00:20.6]} 73. Kb8
{[%clk 0:00:34]} 73... Rb2+ {[%clk 0:00:20.9]} 74. Ka7 {[%clk 0:00:34.5]} 74...
Rc2 {[%clk 0:00:20.2]} 75. Kb6 {[%clk 0:00:34.7]} 75... Rb2+ {[%clk 0:00:20.4]}
76. Ka5 {[%clk 0:00:35]} 76... Rc2 {[%clk 0:00:20.4]} 77. Kb6 {[%clk 0:00:34.4]}
77... Rb2+ {[%clk 0:00:20]} 78. Kc6 {[%clk 0:00:34.8]} 78... Rc2+ {[%clk
0:00:20.2]} 1/2-1/2

[Event "*** Titled Tuesday Blitz"]
[Site "Chess.com"]
[Date "2020.11.24"]
[Round "2"]
[White "Hercog"]
[Black "r31415"]
[Result "0-1"]
[WhiteElo "2270"]
[BlackElo "2467"]
[TimeControl "180+1"]
[EndTime "10:34:36 PST"]
[Termination "r31415 won by resignation"]

1. d4 {[%clk 0:02:59.1]} 1... Nf6 {[%clk 0:03:00.4]} 2. c4 {[%clk 0:02:59.2]}
2... g6 {[%clk 0:03:00.8]} 3. Nc3 {[%clk 0:02:59.2]} 3... d5 {[%clk 0:03:01.4]}
4. cxd5 {[%clk 0:02:59.3]} 4... Nxd5 {[%clk 0:03:02.3]} 5. e4 {[%clk 0:02:59.7]}
5... Nxc3 {[%clk 0:03:02.7]} 6. bxc3 {[%clk 0:03:00.3]} 6... Bg7 {[%clk
0:03:03.6]} 7. Nf3 {[%clk 0:03:00.1]} 7... O-O {[%clk 0:03:01.8]} 8. Be2 {[%clk
0:03:00.1]} 8... c5 {[%clk 0:03:02.3]} 9. Be3 {[%clk 0:03:00.3]} 9... Bg4 {[%clk
0:02:52.7]} 10. O-O {[%clk 0:02:58.9]} 10... Nc6 {[%clk 0:02:51.6]} 11. d5
{[%clk 0:02:57.7]} 11... Na5 {[%clk 0:02:43.7]} 12. Bxc5 {[%clk 0:02:47.4]}
12... Bxc3 {[%clk 0:02:42.5]} 13. Rc1 {[%clk 0:02:44]} 13... Bb2 {[%clk
0:02:34.5]} 14. Rc2 {[%clk 0:02:35.9]} 14... Bg7 {[%clk 0:02:34.3]} 15. Bd4
{[%clk 0:02:31.8]} 15... b6 {[%clk 0:02:06.2]} 16. Bxg7 {[%clk 0:02:29.9]} 16...
Kxg7 {[%clk 0:02:05.9]} 17. Nd4 {[%clk 0:02:25.8]} 17... Bxe2 {[%clk 0:01:54.4]}
18. Qxe2 {[%clk 0:02:25.7]} 18... e6 {[%clk 0:01:50]} 19. Nc6 {[%clk 0:02:23.2]}
19... Nxc6 {[%clk 0:01:48.8]} 20. dxc6 {[%clk 0:02:23]} 20... Rc8 {[%clk
0:01:47.7]} 21. Rd1 {[%clk 0:02:19.7]} 21... Qe7 {[%clk 0:01:41.8]} 22. Rd7
{[%clk 0:02:16.8]} 22... Qb4 {[%clk 0:01:29.5]} 23. h4 {[%clk 0:02:04.7]} 23...
Qa4 {[%clk 0:01:17.1]} 24. Qc4 {[%clk 0:01:24.6]} 24... Qxc4 {[%clk 0:01:01.1]}
25. Rxc4 {[%clk 0:01:24.7]} 25... Ra8 {[%clk 0:01:02]} 26. Rcd4 {[%clk
0:01:09.9]} 26... Rfc8 {[%clk 0:00:58.4]} 27. c7 {[%clk 0:01:09.7]} 27... Kf8
{[%clk 0:00:48.8]} 28. Rd8+ {[%clk 0:01:07.5]} 28... Ke7 {[%clk 0:00:48.6]} 29.
R4d7+ {[%clk 0:01:07.3]} 29... Kf6 {[%clk 0:00:48.5]} 30. f4 {[%clk 0:00:34.8]}
30... Rxc7 {[%clk 0:00:48.3]} 31. Rxf7+ {[%clk 0:00:29.4]} 31... Kxf7 {[%clk
0:00:39.7]} 32. Rxa8 {[%clk 0:00:27.4]} 32... a5 {[%clk 0:00:39.9]} 33. Rb8
{[%clk 0:00:24]} 33... Rc2 {[%clk 0:00:35.9]} 34. Rxb6 {[%clk 0:00:22.5]} 34...
Rxa2 {[%clk 0:00:35.8]} 35. Rb7+ {[%clk 0:00:21.5]} 35... Kg8 {[%clk 0:00:35.2]}
36. Ra7 {[%clk 0:00:20.8]} 36... a4 {[%clk 0:00:28.6]} 37. Kh2 {[%clk
0:00:20.5]} 37... Re2 {[%clk 0:00:24.7]} 38. Rxa4 {[%clk 0:00:19.8]} 38... h5
{[%clk 0:00:22.1]} 39. Kg3 {[%clk 0:00:19.8]} 39... Kf7 {[%clk 0:00:22.2]} 40.
Kf3 {[%clk 0:00:20]} 40... Re1 {[%clk 0:00:21.4]} 41. Ra7+ {[%clk 0:00:19.7]}
41... Kf8 {[%clk 0:00:19.7]} 42. e5 {[%clk 0:00:16.6]} 42... Rb1 {[%clk
0:00:19.7]} 43. Ke4 {[%clk 0:00:16.2]} 43... Rb4+ {[%clk 0:00:19.8]} 44. Ke3
{[%clk 0:00:16.2]} 44... Rb3+ {[%clk 0:00:20.7]} 45. Ke4 {[%clk 0:00:16]} 45...
Rg3 {[%clk 0:00:20.6]} 46. Ra2 {[%clk 0:00:15.1]} 46... Rg4 {[%clk 0:00:20.4]}
47. Kf3 {[%clk 0:00:14.4]} 47... Rxh4 {[%clk 0:00:20.4]} 48. g3 {[%clk
0:00:14.8]} 48... Rh1 {[%clk 0:00:20.1]} 49. Ra7 {[%clk 0:00:14.3]} 49... Rf1+
{[%clk 0:00:20.2]} 50. Kg2 {[%clk 0:00:14.3]} 50... Rb1 {[%clk 0:00:19.8]} 51.
Kf3 {[%clk 0:00:14.7]} 51... Rb3+ {[%clk 0:00:20]} 52. Kg2 {[%clk 0:00:14.9]}
52... Rb2+ {[%clk 0:00:20.9]} 53. Kf3 {[%clk 0:00:15]} 53... Rb3+ {[%clk
0:00:21.2]} 54. Kg2 {[%clk 0:00:15.4]} 54... Rb4 {[%clk 0:00:21.6]} 55. Kf3
{[%clk 0:00:15.7]} 55... Rb6 {[%clk 0:00:21.5]} 56. Rc7 {[%clk 0:00:15.4]} 56...
Ra6 {[%clk 0:00:20.8]} 57. Rb7 {[%clk 0:00:15.5]} 57... Ra2 {[%clk 0:00:20]} 58.
Rc7 {[%clk 0:00:15.1]} 58... Ra6 {[%clk 0:00:19.7]} 59. Rb7 {[%clk 0:00:15]}
59... Kg8 {[%clk 0:00:20.3]} 60. Rc7 {[%clk 0:00:15.1]} 60... Ra5 {[%clk
0:00:19.9]} 61. Re7 {[%clk 0:00:14.8]} 61... Ra6 {[%clk 0:00:20.2]} 62. Rc7
{[%clk 0:00:14.3]} 62... Rb6 {[%clk 0:00:20.2]} 63. Ra7 {[%clk 0:00:12.9]} 63...
Rb5 {[%clk 0:00:18.1]} 64. Rb7 {[%clk 0:00:12.6]} 64... Rxb7 {[%clk 0:00:17.8]}
0-1

[Event "*** Titled Tuesday Blitz"]
[Site "Chess.com"]
[Date "2020.11.24"]
[Round "2"]
[White "Korchmar_Vasiliy"]
[Black "Kaua18"]
[Result "0-1"]
[WhiteElo "2601"]
[BlackElo "2344"]
[TimeControl "180+1"]
[EndTime "10:34:41 PST"]
[Termination "Kaua18 won on time"]

1. e4 {[%clk 0:03:00.9]} 1... c5 {[%clk 0:03:00.4]} 2. Nf3 {[%clk 0:03:00.8]}
2... Nc6 {[%clk 0:03:00.8]} 3. d4 {[%clk 0:02:59.3]} 3... cxd4 {[%clk
0:03:01.7]} 4. Nxd4 {[%clk 0:03:00.1]} 4... Nf6 {[%clk 0:03:02.4]} 5. Nc3 {[%clk
0:03:00]} 5... e5 {[%clk 0:03:02.3]} 6. Ndb5 {[%clk 0:02:58.4]} 6... d6 {[%clk
0:03:02.8]} 7. Bg5 {[%clk 0:02:56.8]} 7... a6 {[%clk 0:03:03.3]} 8. Bxf6 {[%clk
0:02:19.9]} 8... gxf6 {[%clk 0:03:02.4]} 9. Na3 {[%clk 0:02:20]} 9... b5 {[%clk
0:03:03.1]} 10. Nd5 {[%clk 0:02:17.2]} 10... f5 {[%clk 0:03:03]} 11. exf5 {[%clk
0:02:08.7]} 11... Bxf5 {[%clk 0:03:03.9]} 12. g3 {[%clk 0:02:02]} 12... Bg7
{[%clk 0:03:00.8]} 13. Bg2 {[%clk 0:02:01.6]} 13... Rc8 {[%clk 0:02:52.8]} 14.
c3 {[%clk 0:02:00.5]} 14... Ne7 {[%clk 0:02:44.7]} 15. Nc2 {[%clk 0:01:40.6]}
15... Rc5 {[%clk 0:02:09.1]} 16. Nce3 {[%clk 0:01:34.5]} 16... Be6 {[%clk
0:02:09.1]} 17. Nxe7 {[%clk 0:01:10.1]} 17... Qxe7 {[%clk 0:02:08.8]} 18. Qh5
{[%clk 0:01:10.2]} 18... e4 {[%clk 0:01:55.3]} 19. Qe2 {[%clk 0:01:06.3]} 19...
d5 {[%clk 0:01:37.1]} 20. O-O {[%clk 0:01:06.5]} 20... O-O {[%clk 0:01:35.5]}
21. Rfd1 {[%clk 0:01:07]} 21... f5 {[%clk 0:01:08.3]} 22. b4 {[%clk 0:01:06.7]}
22... Rxc3 {[%clk 0:00:59.7]} 23. Nxd5 {[%clk 0:01:07.1]} 23... Bxd5 {[%clk
0:00:53.2]} 24. Rxd5 {[%clk 0:01:08]} 24... Qxb4 {[%clk 0:00:53.4]} 25. Rad1
{[%clk 0:01:08]} 25... Qc4 {[%clk 0:00:50.4]} 26. Qh5 {[%clk 0:01:07.6]} 26...
Qc8 {[%clk 0:00:22.4]} 27. Rd7 {[%clk 0:01:05.3]} 27... Rc6 {[%clk 0:00:18.2]}
28. Qh4 {[%clk 0:00:24.2]} 28... Qe8 {[%clk 0:00:14.2]} 29. Re7 {[%clk
0:00:19.2]} 29... Qg6 {[%clk 0:00:10.2]} 30. Rdd7 {[%clk 0:00:18.7]} 30... Rc1+
{[%clk 0:00:06]} 31. Bf1 {[%clk 0:00:18.6]} 31... Bf6 {[%clk 0:00:06.4]} 32.
Qxh7+ {[%clk 0:00:17.4]} 32... Qxh7 {[%clk 0:00:05.9]} 33. Rxh7 {[%clk
0:00:18.3]} 33... Ra1 {[%clk 0:00:05.6]} 34. h4 {[%clk 0:00:06.4]} 34... Rc8
{[%clk 0:00:05.2]} 35. Kg2 {[%clk 0:00:04]} 35... Rxa2 {[%clk 0:00:04.3]} 36.
Rhf7 {[%clk 0:00:03]} 36... Bh8 {[%clk 0:00:03.6]} 37. Rxf5 {[%clk 0:00:03.2]}
37... e3 {[%clk 0:00:03.1]} 38. Rg5+ {[%clk 0:00:02.8]} 38... Kf8 {[%clk
0:00:03.6]} 39. Bd3 {[%clk 0:00:02]} 39... Rxf2+ {[%clk 0:00:03.5]} 40. Kh3
{[%clk 0:00:02.7]} 40... Rf7 {[%clk 0:00:03]} 41. Rxf7+ {[%clk 0:00:01.3]} 41...
Kxf7 {[%clk 0:00:03.9]} 42. Rf5+ {[%clk 0:00:01.4]} 42... Ke6 {[%clk 0:00:03.4]}
43. Rf3 {[%clk 0:00:02.3]} 43... Rc3 {[%clk 0:00:02]} 44. Rxe3+ {[%clk
0:00:02.3]} 44... Kd6 {[%clk 0:00:02.7]} 45. Re8 {[%clk 0:00:01.7]} 45... Bd4
{[%clk 0:00:02.1]} 46. Rd8+ {[%clk 0:00:01.7]} 46... Kc5 {[%clk 0:00:03]} 47.
Be4 {[%clk 0:00:01.8]} 47... b4 {[%clk 0:00:03.1]} 48. h5 {[%clk 0:00:01.9]}
48... b3 {[%clk 0:00:03.5]} 49. Rc8+ {[%clk 0:00:02.3]} 49... Kb4 {[%clk
0:00:03.8]} 50. Rb8+ {[%clk 0:00:03.2]} 50... Ka3 {[%clk 0:00:04]} 51. h6 {[%clk
0:00:03.7]} 51... b2 {[%clk 0:00:04.4]} 52. Kh4 {[%clk 0:00:02.8]} 52... a5
{[%clk 0:00:04.9]} 53. g4 {[%clk 0:00:03.1]} 53... Rc1 {[%clk 0:00:05.3]} 54. g5
{[%clk 0:00:03]} 54... Rg1 {[%clk 0:00:05.6]} 55. g6 {[%clk 0:00:01.3]} 55...
Be5 {[%clk 0:00:03.3]} 0-1